[Event "44th Chess Olympiad Women 2022"]
[Site "Chennai"]
[Date "2022.08.10"]
[Round "11.2"]
[White "Malicka, Maria"]
[Black "Buksa, Nataliya"]
[Result "1/2-1/2"]
[ECO "C89"]
[WhiteElo "2393"]
[BlackElo "2401"]
[Annotator "ChessBase"]
[PlyCount "83"]
[EventDate "2022.07.29"]
[EventType "team-tourn"]
[EventCountry "IND"]
[SourceTitle "playchess.com"]
[Source "ChessBase"]
[SourceQuality "1"]
[WhiteTeam "Poland"]
[BlackTeam "Ukraine"]
[WhiteTeamCountry "POL"]
[BlackTeamCountry "UKR"]
[TimeControl "40/5400+30:1800+30"]

1. e4 {[%emt 0:00:01]} e5 {[%emt 0:00:04]} 2. Nf3 {[%emt 0:00:04]} Nc6 {[%emt 0:00:02]} 3. Bb5 {[%emt 0:00:04]} a6 {[%emt 0:00:03]} 4. Ba4 {[%emt 0:00:03]} Nf6 {[%emt 0:00:04]} 5. O-O {[%emt 0:00:06]} Be7 {[%emt 0:00:09]} 6. Re1 {[%emt 0:00:49]} b5 {[%emt 0:00:04]} 7. Bb3 {[%emt 0:00:04]} O-O {[%emt 0:00:02]} 8. c3 {[%emt 0:02:17]} d5 {[%emt 0:00:11]} 9. d4 {[%emt 0:00:09]} exd4 {[%emt 0:00:11]} 10. e5 {[%emt 0:00:16]} Ne4 {[%emt 0:00:03]} 11. cxd4 {[%emt 0:00:09]} Bf5 {[%emt 0:00:03]} 12. Be3 {[%emt 0:13:34]} Qd7 {[%emt 0:08:32]} 13. Nfd2 {[%emt 0:08:26]} Bb4 {[%emt 0:21:56]} 14. Bc2 {[%emt 0:20:12]} f6 {[%emt 0:11:23]} 15. exf6 {[%emt 0:04:16]} Rxf6 {[%emt 0:00:51]} 16. Nxe4 {[%emt 0:05:50]} dxe4 {[%emt 0:01:41]} 17. Nc3 {[%emt 0:03:42]} Bg4 {[%emt 0:05:12]} 18. Qb1 {[%emt 0:03:30]} Nxd4 {[%emt 0:10:20]} 19. Bxe4 {[%emt 0:11:25]} c6 {[%emt 0:07:45]} 20. Bxh7+ {[%emt 0:09:22]} Kh8 {[%emt 0:00:03]} 21. Qe4 {[%emt 0:00:14]} Bxc3 {[%emt 0:07:01]} 22. bxc3 {[%emt 0:02:05]} Ne2+ {[%emt 0:00:19]} 23. Kh1 {[%emt 0:08:54]} Nxc3 {[%emt 0:00:05]} 24. Qc2 {[%emt 0:00:56]} Nd5 {[%emt 0:00:34]} 25. Be4 {[%emt 0:00:33]} Bf5 {[%emt 0:00:45]} 26. Bg5 {[%emt 0:01:00]} Rf7 {[%emt 0:01:51]} 27. Rac1 {[%emt 0:02:01]} Re8 {[%emt 0:01:05]} 28. f3 {[%emt 0:01:16]} Nb4 {[%emt 0:00:49]} 29. Qb3 {[%emt 0:01:17]} Bxe4 {[%emt 0:02:08]} 30. Qxb4 {[%emt 0:00:01]} Bd5 {[%emt 0:00:24]} 31. a4 {[%emt 0:01:16]} Rff8 {[%emt 0:03:09]} 32. axb5 {[%emt 0:00:55]} axb5 {[%emt 0:00:03]} 33. Rxe8 {[%emt 0:00:28]} Rxe8 {[%emt 0:00:05]} 34. Re1 {[%emt 0:01:24]} Rxe1+ {[%emt 0:05:29]} 35. Qxe1 {[%emt 0:00:08]} Qd6 {[%emt 0:04:18]} 36. Be7 {[%emt 0:00:25]} Qf4 {[%emt 0:00:59]} 37. Bc5 {[%emt 0:00:59]} Kh7 {[%emt 0:00:17]} 38. Qb1+ {[%emt 0:00:27]} Kg8 {[%emt 0:00:17]} 39. Qe1 {[%emt 0:00:09]} Qc4 {[%emt 0:01:47]} 40. Qe8+ {[%emt 0:00:21]} Kh7 {[%emt 0:00:05]} 41. Qh5+ {[%emt 0:30:05]} Kg8 {[%emt 0:30:03]} 42. Qe8+ {[%emt 0:00:32]} 1/2-1/2

[Event "44th Chess Olympiad Women 2022"]
[Site "Chennai"]
[Date "2022.08.10"]
[Round "11.3"]
[White "Batsiashvili, Nino"]
[Black "Balajayeva, Khanim"]
[Result "1-0"]
[ECO "A20"]
[WhiteElo "2466"]
[BlackElo "2344"]
[Annotator "ChessBase"]
[PlyCount "165"]
[EventDate "2022.07.29"]
[EventType "team-tourn"]
[EventCountry "IND"]
[SourceTitle "playchess.com"]
[Source "ChessBase"]
[SourceQuality "1"]
[WhiteTeam "Georgia"]
[BlackTeam "Azerbaijan"]
[WhiteTeamCountry "GEO"]
[BlackTeamCountry "AZE"]
[TimeControl "40/5400+30:1800+30"]

1. c4 {[%emt 0:00:03]} e5 {[%emt 0:00:07]} 2. g3 {[%emt 0:00:04]} Nf6 {[%emt 0:00:08]} 3. Bg2 {[%emt 0:00:08]} c6 {[%emt 0:00:16]} 4. d4 {[%emt 0:00:34]} e4 {[%emt 0:00:02]} 5. Nc3 {[%emt 0:00:57]} d5 {[%emt 0:00:19]} 6. Bg5 {[%emt 0:00:13]} Nbd7 {[%emt 0:02:59]} 7. cxd5 {[%emt 0:07:04]} cxd5 {[%emt 0:00:03]} 8. Qa4 {[%emt 0:06:16]} Qb6 {[%emt 0:06:12]} 9. Qb3 {[%emt 0:16:20]} Qxd4 {[%emt 0:13:57]} 10. Rd1 {[%emt 0:02:37]} Qb4 {[%emt 0:02:12]} 11. Nh3 {[%emt 0:00:20]} h6 {[%emt 0:07:36]} 12. Bxf6 {[%emt 0:07:22]} Nxf6 {[%emt 0:00:05]} 13. Nf4 {[%emt 0:00:03]} Be6 {[%emt 0:05:35]} 14. O-O {[%emt 0:00:26]} Qxb3 {[%emt 0:07:13]} 15. axb3 {[%emt 0:00:05]} Rd8 {[%emt 0:00:02]} 16. Nb5 {[%emt 0:00:36]} Bd6 {[%emt 0:00:21]} 17. Nxe6 {[%emt 0:04:01]} fxe6 {[%emt 0:00:03]} 18. Nxa7 {[%emt 0:00:03]} Be5 {[%emt 0:03:03]} 19. Nb5 {[%emt 0:02:47]} Bxb2 {[%emt 0:09:40]} 20. f4 {[%emt 0:17:03]} Ng4 {[%emt 0:03:48]} 21. Rd2 {[%emt 0:01:13]} Bf6 {[%emt 0:00:08]} 22. Bh3 {[%emt 0:00:06]} h5 {[%emt 0:02:42]} 23. Bxg4 {[%emt 0:09:00]} hxg4 {[%emt 0:00:04]} 24. f5 {[%emt 0:00:02]} Be5 {[%emt 0:04:26]} 25. fxe6 {[%emt 0:01:00]} Ke7 {[%emt 0:00:01]} 26. Rf7+ {[%emt 0:02:44]} Kxe6 {[%emt 0:00:33]} 27. Rxb7 {[%emt 0:00:04]} d4 {[%emt 0:10:15]} 28. Rb6+ {[%emt 0:02:04]} Kf5 {[%emt 0:01:08]} 29. Rd1 {[%emt 0:01:11]} Rh6 {[%emt 0:05:04]} 30. Rf1+ {[%emt 0:09:02]} Kg5 {[%emt 0:00:09]} 31. Rb7 {[%emt 0:00:30]} Rc6 {[%emt 0:07:33]} 32. Na3 {[%emt 0:01:36]} d3 {[%emt 0:03:36]} 33. Rb5 {[%emt 0:01:34]} d2 {[%emt 0:00:31]} 34. Rxe5+ {[%emt 0:00:06]} Kh6 {[%emt 0:01:18]} 35. Nc4 {[%emt 0:00:41]} d1=Q {[%emt 0:00:07]} 36. Rxd1 {[%emt 0:00:05]} Rxd1+ {[%emt 0:00:01]} 37. Kg2 {[%emt 0:01:11]} Rb1 {[%emt 0:02:38]} 38. Rxe4 {[%emt 0:00:36]} Ra6 {[%emt 0:00:38]} 39. Ne3 {[%emt 0:02:58]} Rxb3 {[%emt 0:00:32]} 40. Nxg4+ {[%emt 0:00:05]} Kg5 {[%emt 0:00:25]} 41. h4+ {[%emt 0:30:16]} Kg6 {[%emt 0:30:39]} 42. Re5 {[%emt 0:02:16]} Ra4 {[%emt 0:03:25]} 43. Rg5+ {[%emt 0:03:15]} Kh7 {[%emt 0:00:53]} 44. Kf2 {[%emt 0:01:24]} Ra2 {[%emt 0:00:00]} 45. Re5 {[%emt 0:00:00]} Ra4 {[%emt 0:00:00]} 46. Nh2 {[%emt 0:00:00]} Kg6 {[%emt 0:00:00]} 47. Nf3 {[%emt 0:00:00]} Kf6 {[%emt 0:00:00]} 48. Re8 {[%emt 0:00:00]} Kf7 {[%emt 0:00:00]} 49. Re5 {[%emt 0:00:00]} Kf6 {[%emt 0:00:00]} 50. Re8 {[%emt 0:00:00]} Kf7 {[%emt 0:00:00]} 51. Rc8 {[%emt 0:00:00]} Rb5 {[%emt 0:00:00]} 52. Rc7+ {[%emt 0:00:00]} Kg6 {[%emt 0:00:00]} 53. Rc6+ {[%emt 0:00:00]} Kf7 {[%emt 0:00:00]} 54. Ng5+ {[%emt 0:00:00]} Kf8 {[%emt 0:00:00]} 55. Re6 {[%emt 0:00:00]} Raa5 {[%emt 0:00:00]} 56. Nf3 {[%emt 0:00:00]} Kf7 {[%emt 0:00:00]} 57. Re4 {[%emt 0:00:00]} Rc5 {[%emt 0:00:00]} 58. g4 {[%emt 0:00:00]} Rcb5 {[%emt 0:00:00]} 59. Kg3 {[%emt 0:00:00]} Rc5 {[%emt 0:00:00]} 60. Ng5+ {[%emt 0:00:00]} Rxg5 {[%emt 0:00:00]} 61. hxg5 {[%emt 0:00:00]} Rxg5 {[%emt 0:00:00]} 62. Kf4 {[%emt 0:00:00]} Ra5 {[%emt 0:00:00]} 63. Re5 {[%emt 0:00:00]} Ra1 {[%emt 0:00:00]} 64. Rb5 {[%emt 0:00:00]} Rf1+ {[%emt 0:00:27]} 65. Kg5 {[%emt 0:00:00]} Re1 {[%emt 0:00:34]} 66. Rb7+ {[%emt 0:00:00]} Kf8 {[%emt 0:00:03]} 67. Kg6 {[%emt 0:00:00]} Rxe2 {[%emt 0:00:37]} 68. Rb8+ {[%emt 0:00:00]} Ke7 {[%emt 0:00:04]} 69. Kxg7 {[%emt 0:01:21]} Rg2 {[%emt 0:00:05]} 70. Rb4 {[%emt 0:00:03]} Ke6 {[%emt 0:02:48]} 71. Kg6 {[%emt 0:00:31]} Ke7 {[%emt 0:04:06]} 72. Rf4 {[%emt 0:00:10]} Rg1 {[%emt 0:04:25]} 73. g5 {[%emt 0:00:05]} Rg2 {[%emt 0:00:28]} 74. Kh6 {[%emt 0:00:09]} Rg1 {[%emt 0:00:54]} 75. g6 {[%emt 0:00:10]} Rg2 {[%emt 0:00:23]} 76. Kg7 {[%emt 0:00:07]} Ke6 {[%emt 0:00:19]} 77. Rf1 {[%emt 0:00:15]} Rg3 {[%emt 0:01:55]} 78. Kh7 {[%emt 0:00:15]} Rh3+ {[%emt 0:00:51]} 79. Kg8 {[%emt 0:00:10]} Ke7 {[%emt 0:00:44]} 80. g7 {[%emt 0:00:18]} Rh2 {[%emt 0:00:16]} 81. Re1+ {[%emt 0:00:11]} Kd6 {[%emt 0:00:50]} 82. Re4 {[%emt 0:00:23]} Kd7 {[%emt 0:00:14]} 83. Kf7 {[%emt 0:00:45]} 1-0

[Event "44th Chess Olympiad Women 2022"]
[Site "Chennai"]
[Date "2022.08.10"]
[Round "11.3"]
[White "Mammadzada, Gunay"]
[Black "Dzagnidze, Nana"]
[Result "1/2-1/2"]
[ECO "E04"]
[WhiteElo "2455"]
[BlackElo "2531"]
[Annotator "ChessBase"]
[PlyCount "70"]
[EventDate "2022.07.29"]
[EventType "team-tourn"]
[EventCountry "IND"]
[SourceTitle "playchess.com"]
[Source "ChessBase"]
[SourceQuality "1"]
[WhiteTeam "Azerbaijan"]
[BlackTeam "Georgia"]
[WhiteTeamCountry "AZE"]
[BlackTeamCountry "GEO"]
[TimeControl "40/5400+30:1800+30"]

1. d4 {[%emt 0:00:07]} Nf6 {[%emt 0:00:44]} 2. c4 {[%emt 0:00:05]} e6 {[%emt 0:00:17]} 3. Nf3 {[%emt 0:00:09]} d5 {[%emt 0:00:26]} 4. g3 {[%emt 0:00:26]} dxc4 {[%emt 0:00:11]} 5. Bg2 {[%emt 0:00:23]} a6 {[%emt 0:00:07]} 6. O-O {[%emt 0:01:13]} Nc6 {[%emt 0:00:06]} 7. e3 {[%emt 0:02:09]} Bd7 {[%emt 0:01:13]} 8. Qe2 {[%emt 0:00:37]} Bd6 {[%emt 0:00:38]} 9. Qxc4 {[%emt 0:01:29]} O-O {[%emt 0:00:40]} 10. Rd1 {[%emt 0:11:02]} Rb8 {[%emt 0:00:37]} 11. Nbd2 {[%emt 0:13:35]} Qe7 {[%emt 0:16:27]} 12. Qc2 {[%emt 0:07:30]} Nb4 {[%emt 0:10:02]} 13. Qb3 {[%emt 0:06:42]} Qe8 {[%emt 0:05:08]} 14. a4 {[%emt 0:00:19]} b5 {[%emt 0:03:39]} 15. axb5 {[%emt 0:03:53]} Bxb5 {[%emt 0:01:37]} 16. Nc4 {[%emt 0:00:18]} Bc6 {[%emt 0:14:25]} 17. Bd2 {[%emt 0:13:51]} Be7 {[%emt 0:08:32]} 18. Nfe5 {[%emt 0:04:24]} Bxg2 {[%emt 0:00:28]} 19. Kxg2 {[%emt 0:00:01]} c5 {[%emt 0:00:07]} 20. dxc5 {[%emt 0:02:56]} Bxc5 {[%emt 0:00:10]} 21. Qa4 {[%emt 0:03:05]} Qxa4 {[%emt 0:15:06]} 22. Rxa4 {[%emt 0:00:25]} Rfc8 {[%emt 0:00:03]} 23. Bxb4 {[%emt 0:01:47]} Rxb4 {[%emt 0:00:07]} 24. Rxa6 {[%emt 0:00:42]} Nd5 {[%emt 0:03:06]} 25. e4 {[%emt 0:06:32]} Ne7 {[%emt 0:08:13]} 26. Nd6 {[%emt 0:07:33]} Bxd6 {[%emt 0:01:44]} 27. Raxd6 {[%emt 0:00:25]} Rf8 {[%emt 0:03:44]} 28. Rd8 {[%emt 0:07:49]} g6 {[%emt 0:00:05]} 29. Ng4 {[%emt 0:03:57]} Rxd8 {[%emt 0:01:25]} 30. Rxd8+ {[%emt 0:00:04]} Kg7 {[%emt 0:00:04]} 31. Rd7 {[%emt 0:00:17]} Nc6 {[%emt 0:00:35]} 32. Rc7 {[%emt 0:00:58]} h5 {[%emt 0:00:43]} 33. Rxc6 {[%emt 0:01:32]} hxg4 {[%emt 0:00:07]} 34. e5 {[%emt 0:00:42]} Rxb2 {[%emt 0:00:17]} 35. Rc4 {[%emt 0:00:07]} Re2 {[%emt 0:00:10]} 1/2-1/2

[Event "44th Chess Olympiad Women 2022"]
[Site "Chennai"]
[Date "2022.08.10"]
[Round "11.3"]
[White "Arabidze, Meri"]
[Black "Fataliyeva, Ulviyya"]
[Result "1-0"]
[ECO "D11"]
[WhiteElo "2426"]
[BlackElo "2372"]
[Annotator "ChessBase"]
[PlyCount "143"]
[EventDate "2022.07.29"]
[EventType "team-tourn"]
[EventCountry "IND"]
[SourceTitle "playchess.com"]
[Source "ChessBase"]
[SourceQuality "1"]
[WhiteTeam "Georgia"]
[BlackTeam "Azerbaijan"]
[WhiteTeamCountry "GEO"]
[BlackTeamCountry "AZE"]
[TimeControl "40/5400+30:1800+30"]

1. d4 {[%emt 0:00:05]} d5 {[%emt 0:00:04]} 2. c4 {[%emt 0:00:10]} c6 {[%emt 0:00:04]} 3. Nf3 {[%emt 0:00:14]} Nf6 {[%emt 0:00:05]} 4. g3 {[%emt 0:00:14]} Bf5 {[%emt 0:00:33]} 5. Nc3 {[%emt 0:00:18]} e6 {[%emt 0:03:41]} 6. Nh4 {[%emt 0:00:27]} Be4 {[%emt 0:00:33]} 7. f3 {[%emt 0:00:46]} Bg6 {[%emt 0:00:06]} 8. Qb3 {[%emt 0:00:40]} Qd7 {[%emt 0:04:31]} 9. Be3 {[%emt 0:07:33]} Be7 {[%emt 0:06:45]} 10. Nxg6 {[%emt 0:04:40]} hxg6 {[%emt 0:00:54]} 11. Bg2 {[%emt 0:00:05]} Na6 {[%emt 0:02:37]} 12. Bf2 {[%emt 0:01:44]} Rb8 {[%emt 0:03:22]} 13. Rd1 {[%emt 0:05:40]} Qc7 {[%emt 0:06:22]} 14. O-O {[%emt 0:06:48]} Qa5 {[%emt 0:03:36]} 15. cxd5 {[%emt 0:08:04]} cxd5 {[%emt 0:06:06]} 16. h3 {[%emt 0:03:04]} Qb4 {[%emt 0:08:59]} 17. Qc2 {[%emt 0:02:06]} Qc4 {[%emt 0:03:32]} 18. e4 {[%emt 0:04:28]} O-O {[%emt 0:05:17]} 19. e5 {[%emt 0:07:36]} Nd7 {[%emt 0:03:18]} 20. Rfe1 {[%emt 0:00:14]} b5 {[%emt 0:04:03]} 21. Bf1 {[%emt 0:04:10]} Qc6 {[%emt 0:01:17]} 22. Rc1 {[%emt 0:01:08]} Bb4 {[%emt 0:23:38]} 23. Qd3 {[%emt 0:07:06]} Qb6 {[%emt 0:03:27]} 24. a3 {[%emt 0:05:12]} Bxc3 {[%emt 0:00:04]} 25. Rxc3 {[%emt 0:00:12]} Rb7 {[%emt 0:00:53]} 26. Rec1 {[%emt 0:03:57]} Nab8 {[%emt 0:01:05]} 27. Rc8 {[%emt 0:03:58]} a6 {[%emt 0:01:50]} 28. h4 {[%emt 0:01:49]} Qa7 {[%emt 0:00:25]} 29. b3 {[%emt 0:06:41]} Rxc8 {[%emt 0:02:25]} 30. Rxc8+ {[%emt 0:00:02]} Nf8 {[%emt 0:00:01]} 31. Qc2 {[%emt 0:02:31]} Nbd7 {[%emt 0:00:12]} 32. g4 {[%emt 0:02:56]} Rb8 {[%emt 0:01:49]} 33. Rc7 {[%emt 0:02:17]} Rb7 {[%emt 0:00:05]} 34. Rc6 {[%emt 0:00:35]} Rb6 {[%emt 0:00:58]} 35. Rc3 {[%emt 0:00:20]} a5 {[%emt 0:00:55]} 36. Rc8 {[%emt 0:06:41]} Rb7 {[%emt 0:03:21]} 37. Rc6 {[%emt 0:00:33]} Rb6 {[%emt 0:00:37]} 38. Rc8 {[%emt 0:01:12]} Rb7 {[%emt 0:00:03]} 39. a4 {[%emt 0:02:10]} bxa4 {[%emt 0:01:27]} 40. bxa4 {[%emt 0:00:10]} Nb6 {[%emt 0:00:41]} 41. Rc6 {[%emt 0:31:33]} Nfd7 {[%emt 0:02:03]} 42. Kg2 {[%emt 0:00:00]} Nb8 {[%emt 0:00:44]} 43. Rc5 {[%emt 0:00:00]} N8d7 {[%emt 0:01:56]} 44. Rc3 {[%emt 0:00:00]} Nb8 {[%emt 0:02:52]} 45. h5 {[%emt 0:00:00]} gxh5 {[%emt 0:01:18]} 46. gxh5 {[%emt 0:00:00]} N8d7 {[%emt 0:00:39]} 47. Bb5 {[%emt 0:00:00]} Qb8 {[%emt 0:02:26]} 48. f4 {[%emt 0:00:00]} Nc4 {[%emt 0:03:42]} 49. f5 {[%emt 0:00:00]} exf5 {[%emt 0:01:27]} 50. Qxf5 {[%emt 0:00:00]} Qd8 {[%emt 0:10:21]} 51. Qg4 {[%emt 0:00:00]} Nf8 {[%emt 0:01:17]} 52. Bh4 {[%emt 0:00:00]} Qb6 {[%emt 0:05:35]} 53. Bf6 {[%emt 0:02:21]} g6 {[%emt 0:00:41]} 54. hxg6 {[%emt 0:01:18]} fxg6 {[%emt 0:00:23]} 55. Rxc4 {[%emt 0:02:05]} dxc4 {[%emt 0:00:05]} 56. Bxc4+ {[%emt 0:00:03]} Rf7 {[%emt 0:00:03]} 57. Bxf7+ {[%emt 0:01:09]} Kxf7 {[%emt 0:00:02]} 58. Qf3 {[%emt 0:00:18]} Qe6 {[%emt 0:03:19]} 59. d5 {[%emt 0:00:26]} Qf5 {[%emt 0:00:06]} 60. Bg5 {[%emt 0:01:38]} Qxf3+ {[%emt 0:01:05]} 61. Kxf3 {[%emt 0:00:03]} Ke8 {[%emt 0:00:35]} 62. e6 {[%emt 0:00:31]} Nh7 {[%emt 0:00:01]} 63. Kf4 {[%emt 0:00:10]} Nf8 {[%emt 0:00:04]} 64. Ke5 {[%emt 0:00:26]} Nh7 {[%emt 0:00:02]} 65. Bd2 {[%emt 0:00:17]} g5 {[%emt 0:00:10]} 66. Bxa5 {[%emt 0:00:07]} g4 {[%emt 0:00:06]} 67. d6 {[%emt 0:00:09]} Nf8 {[%emt 0:00:05]} 68. Bb6 {[%emt 0:00:23]} g3 {[%emt 0:00:08]} 69. a5 {[%emt 0:00:21]} g2 {[%emt 0:00:25]} 70. a6 {[%emt 0:00:15]} Ng6+ {[%emt 0:00:19]} 71. Kf6 {[%emt 0:00:13]} Ne7 {[%emt 0:00:06]} 72. d7+ {[%emt 0:00:08]} 1-0

[Event "44th Chess Olympiad Women 2022"]
[Site "Chennai"]
[Date "2022.08.10"]
[Round "11.3"]
[White "Beydullayeva, Govhar"]
[Black "Javakhishvili, Lela"]
[Result "1/2-1/2"]
[ECO "A37"]
[WhiteElo "2390"]
[BlackElo "2476"]
[Annotator "ChessBase"]
[PlyCount "61"]
[EventDate "2022.07.29"]
[EventType "team-tourn"]
[EventCountry "IND"]
[SourceTitle "playchess.com"]
[Source "ChessBase"]
[SourceQuality "1"]
[WhiteTeam "Azerbaijan"]
[BlackTeam "Georgia"]
[WhiteTeamCountry "AZE"]
[BlackTeamCountry "GEO"]
[TimeControl "40/5400+30:1800+30"]

1. Nf3 {[%emt 0:00:06]} c5 {[%emt 0:00:20]} 2. c4 {[%emt 0:00:15]} Nc6 {[%emt 0:00:20]} 3. Nc3 {[%emt 0:00:09]} e5 {[%emt 0:11:37]} 4. g3 {[%emt 0:03:28]} g6 {[%emt 0:00:17]} 5. Bg2 {[%emt 0:00:53]} Bg7 {[%emt 0:00:06]} 6. d3 {[%emt 0:00:33]} Nge7 {[%emt 0:01:06]} 7. O-O {[%emt 0:03:48]} O-O {[%emt 0:00:17]} 8. Bg5 {[%emt 0:00:14]} f6 {[%emt 0:02:49]} 9. Bd2 {[%emt 0:02:13]} d6 {[%emt 0:00:13]} 10. a3 {[%emt 0:00:06]} Be6 {[%emt 0:00:31]} 11. Ne1 {[%emt 0:07:25]} a5 {[%emt 0:12:25]} 12. Nd5 {[%emt 0:06:25]} Rb8 {[%emt 0:05:46]} 13. Nxe7+ {[%emt 0:14:57]} Qxe7 {[%emt 0:07:51]} 14. Nc2 {[%emt 0:01:31]} Qd7 {[%emt 0:02:22]} 15. b4 {[%emt 0:01:50]} axb4 {[%emt 0:06:26]} 16. axb4 {[%emt 0:00:07]} cxb4 {[%emt 0:02:38]} 17. Nxb4 {[%emt 0:01:59]} Nxb4 {[%emt 0:03:54]} 18. Bxb4 {[%emt 0:00:01]} Rfd8 {[%emt 0:00:18]} 19. Ba5 {[%emt 0:20:13]} b6 {[%emt 0:00:53]} 20. Bd2 {[%emt 0:00:36]} b5 {[%emt 0:06:25]} 21. cxb5 {[%emt 0:01:24]} Rxb5 {[%emt 0:00:22]} 22. Ra6 {[%emt 0:01:27]} d5 {[%emt 0:03:07]} 23. Qa4 {[%emt 0:04:09]} Bf7 {[%emt 0:03:18]} 24. Rc1 {[%emt 0:08:13]} Rbb8 {[%emt 0:03:02]} 25. Qa5 {[%emt 0:01:35]} Rb5 {[%emt 0:08:36]} 26. Qa4 {[%emt 0:01:05]} Rbb8 {[%emt 0:00:19]} 27. Qa5 {[%emt 0:05:30]} Rb5 {[%emt 0:00:16]} 28. Qa4 {[%emt 0:02:02]} Rbb8 {[%emt 0:00:10]} 29. Qa5 {[%emt 0:00:04]} Rb5 {[%emt 0:00:04]} 30. Qa4 {[%emt 0:00:02]} Rbb8 {[%emt 0:00:05]} 31. Qa5 {[%emt 0:00:03]} 1/2-1/2

[Event "44th Chess Olympiad Women 2022"]
[Site "Chennai"]
[Date "2022.08.10"]
[Round "11.4"]
[White "Abdumalik, Zhansaya"]
[Black "Karavade, Eesha"]
[Result "1-0"]
[ECO "C45"]
[WhiteElo "2495"]
[BlackElo "2339"]
[Annotator "ChessBase"]
[PlyCount "89"]
[EventDate "2022.07.29"]
[EventType "team-tourn"]
[EventCountry "IND"]
[SourceTitle "playchess.com"]
[Source "ChessBase"]
[SourceQuality "1"]
[WhiteTeam "Kazakhstan"]
[BlackTeam "India"]
[WhiteTeamCountry "KAZ"]
[BlackTeamCountry "IND"]
[TimeControl "40/5400+30:1800+30"]

1. e4 {[%emt 0:00:03]} e5 {[%emt 0:00:50]} 2. Nf3 {[%emt 0:00:02]} Nc6 {[%emt 0:00:07]} 3. d4 {[%emt 0:00:03]} exd4 {[%emt 0:00:32]} 4. Nxd4 {[%emt 0:00:04]} Qf6 {[%emt 0:00:58]} 5. Nb3 {[%emt 0:06:53]} Qg6 {[%emt 0:02:14]} 6. f3 {[%emt 0:01:12]} Bb4+ {[%emt 0:08:18]} 7. Kf2 {[%emt 0:03:54]} Nge7 {[%emt 0:06:29]} 8. a3 {[%emt 0:08:38]} Bd6 {[%emt 0:02:14]} 9. Nc3 {[%emt 0:02:06]} Be5 {[%emt 0:06:30]} 10. Ne2 {[%emt 0:07:40]} d6 {[%emt 0:07:21]} 11. f4 {[%emt 0:09:55]} Bf6 {[%emt 0:01:43]} 12. Qd3 {[%emt 0:01:51]} h5 {[%emt 0:08:45]} 13. Nbd4 {[%emt 0:04:36]} Bd7 {[%emt 0:07:51]} 14. Nf3 {[%emt 0:03:48]} O-O-O {[%emt 0:05:41]} 15. c4 {[%emt 0:05:00]} Bg4 {[%emt 0:04:22]} 16. Nc3 {[%emt 0:12:44]} Bxf3 {[%emt 0:11:12]} 17. gxf3 {[%emt 0:01:43]} Bd4+ {[%emt 0:02:30]} 18. Ke2 {[%emt 0:02:41]} f5 {[%emt 0:02:09]} 19. Bh3 {[%emt 0:02:59]} Kb8 {[%emt 0:00:41]} 20. Be3 {[%emt 0:02:34]} Bxe3 {[%emt 0:01:19]} 21. Qxe3 {[%emt 0:01:21]} Rhe8 {[%emt 0:00:03]} 22. Rad1 {[%emt 0:05:33]} Qf7 {[%emt 0:05:11]} 23. Nd5 {[%emt 0:03:40]} fxe4 {[%emt 0:04:39]} 24. fxe4 {[%emt 0:00:11]} Na5 {[%emt 0:00:40]} 25. b3 {[%emt 0:01:28]} Nxb3 {[%emt 0:02:31]} 26. Qxb3 {[%emt 0:01:26]} Nxd5 {[%emt 0:00:05]} 27. Rxd5 {[%emt 0:00:11]} Rxe4+ {[%emt 0:00:37]} 28. Kd1 {[%emt 0:00:17]} Qxf4 {[%emt 0:00:51]} 29. Rf1 {[%emt 0:03:56]} Qxh2 {[%emt 0:01:53]} 30. Rd2 {[%emt 0:00:40]} Qe5 {[%emt 0:02:18]} 31. Bg2 {[%emt 0:00:05]} Re8 {[%emt 0:01:21]} 32. Bxe4 {[%emt 0:00:22]} Qxe4 {[%emt 0:00:02]} 33. Qd3 {[%emt 0:00:41]} Qg4+ {[%emt 0:00:36]} 34. Kc2 {[%emt 0:00:24]} a6 {[%emt 0:01:59]} 35. Qd4 {[%emt 0:02:24]} Qh3 {[%emt 0:01:08]} 36. Qd3 {[%emt 0:03:13]} Re3 {[%emt 0:00:57]} 37. Rf8+ {[%emt 0:00:19]} Ka7 {[%emt 0:00:06]} 38. Qd4+ {[%emt 0:01:07]} c5 {[%emt 0:00:02]} 39. Qxg7 {[%emt 0:00:32]} Rxa3 {[%emt 0:00:52]} 40. Qb2 {[%emt 0:00:19]} Re3 {[%emt 0:01:28]} 41. Qh8 {[%emt 0:31:47]} Kb6 {[%emt 0:09:54]} 42. Rb8 {[%emt 0:00:00]} Ka5 {[%emt 0:04:49]} 43. Rxb7 {[%emt 0:00:00]} Qh1 {[%emt 0:00:58]} 44. Rb3 {[%emt 0:00:00]} Qe4+ {[%emt 0:00:33]} 45. Kb2 {[%emt 0:00:00]} 1-0

[Event "44th Chess Olympiad Women 2022"]
[Site "Chennai"]
[Date "2022.08.10"]
[Round "11.4"]
[White "Nandhidhaa, P V"]
[Black "Assaubayeva, Bibisara"]
[Result "0-1"]
[ECO "B22"]
[WhiteElo "2312"]
[BlackElo "2436"]
[Annotator "ChessBase"]
[PlyCount "78"]
[EventDate "2022.07.29"]
[EventType "team-tourn"]
[EventCountry "IND"]
[SourceTitle "playchess.com"]
[Source "ChessBase"]
[SourceQuality "1"]
[WhiteTeam "India"]
[BlackTeam "Kazakhstan"]
[WhiteTeamCountry "IND"]
[BlackTeamCountry "KAZ"]
[TimeControl "40/5400+30:1800+30"]

1. e4 {[%emt 0:00:15]} c5 {[%emt 0:00:15]} 2. c3 {[%emt 0:00:06]} Nf6 {[%emt 0:00:09]} 3. e5 {[%emt 0:00:06]} Nd5 {[%emt 0:00:06]} 4. d4 {[%emt 0:00:11]} cxd4 {[%emt 0:00:06]} 5. Nf3 {[%emt 0:00:19]} Nc6 {[%emt 0:00:08]} 6. cxd4 {[%emt 0:00:06]} d6 {[%emt 0:00:04]} 7. Bc4 {[%emt 0:00:14]} e6 {[%emt 0:04:27]} 8. O-O {[%emt 0:00:37]} Be7 {[%emt 0:00:06]} 9. Qe2 {[%emt 0:00:38]} O-O {[%emt 0:00:21]} 10. Nc3 {[%emt 0:00:09]} dxe5 {[%emt 0:00:17]} 11. dxe5 {[%emt 0:00:06]} Nxc3 {[%emt 0:00:04]} 12. bxc3 {[%emt 0:00:06]} Qc7 {[%emt 0:00:08]} 13. Bd3 {[%emt 0:00:28]} Rd8 {[%emt 0:07:04]} 14. h4 {[%emt 0:02:41]} b6 {[%emt 0:06:27]} 15. h5 {[%emt 0:03:20]} Bb7 {[%emt 0:01:25]} 16. h6 {[%emt 0:02:51]} g6 {[%emt 0:01:35]} 17. Bf4 {[%emt 0:20:00]} Rd7 {[%emt 0:06:47]} 18. Be4 {[%emt 0:17:20]} Rad8 {[%emt 0:09:20]} 19. Rad1 {[%emt 0:06:13]} Na5 {[%emt 0:10:57]} 20. Bxb7 {[%emt 0:01:21]} Nxb7 {[%emt 0:01:49]} 21. Rxd7 {[%emt 0:07:15]} Qxd7 {[%emt 0:03:05]} 22. Nd4 {[%emt 0:03:36]} Nc5 {[%emt 0:01:42]} 23. Qe3 {[%emt 0:04:16]} Bf8 {[%emt 0:07:51]} 24. Bg5 {[%emt 0:04:09]} Rc8 {[%emt 0:00:42]} 25. Rc1 {[%emt 0:02:29]} Qd5 {[%emt 0:04:12]} 26. Nb5 {[%emt 0:02:24]} Ne4 {[%emt 0:04:26]} 27. Bf4 {[%emt 0:04:29]} Nxf2 {[%emt 0:05:42]} 28. Nd6 {[%emt 0:01:30]} Ng4 {[%emt 0:00:38]} 29. Qg3 {[%emt 0:05:38]} Bxd6 {[%emt 0:04:40]} 30. exd6 {[%emt 0:00:03]} f5 {[%emt 0:02:51]} 31. Bg5 {[%emt 0:04:53]} e5 {[%emt 0:03:10]} 32. Be7 {[%emt 0:00:28]} Kf7 {[%emt 0:02:54]} 33. Qe1 {[%emt 0:03:52]} Ke6 {[%emt 0:01:32]} 34. g3 {[%emt 0:01:26]} Kd7 {[%emt 0:00:26]} 35. Qe2 {[%emt 0:01:21]} Rxc3 {[%emt 0:00:51]} 36. Rxc3 {[%emt 0:00:28]} Qd4+ {[%emt 0:00:04]} 37. Kf1 {[%emt 0:01:03]} Qxc3 {[%emt 0:00:06]} 38. Qa6 {[%emt 0:00:04]} Qf3+ {[%emt 0:00:09]} 39. Ke1 {[%emt 0:00:05]} Qf2+ {[%emt 0:00:04]} 0-1